[Event "*** Titled Tuesday Blitz"]
[Site "Chess.com"]
[Date "2021.02.09"]
[Round "6"]
[White "woodhy"]
[Black "Darius321"]
[Result "1-0"]
[WhiteElo "2448"]
[BlackElo "2278"]
[TimeControl "180+1"]
[EndTime "11:08:02 PST"]
[Termination "woodhy won on time"]

1. e4 {[%clk 0:03:00.9]} 1... c5 {[%clk 0:02:59.5]} 2. Nf3 {[%clk 0:03:00.4]}
2... g6 {[%clk 0:02:59.4]} 3. d4 {[%clk 0:02:59.7]} 3... cxd4 {[%clk 0:03:00.3]}
4. Nxd4 {[%clk 0:02:59.7]} 4... Bg7 {[%clk 0:03:00.5]} 5. Be3 {[%clk 0:02:59.9]}
5... Nc6 {[%clk 0:03:00.6]} 6. c4 {[%clk 0:02:59.5]} 6... Nf6 {[%clk 0:03:00.8]}
7. Nc3 {[%clk 0:02:59.5]} 7... Qa5 {[%clk 0:03:00.8]} 8. Bd3 {[%clk 0:02:45.3]}
8... d6 {[%clk 0:02:27.8]} 9. h3 {[%clk 0:02:30.4]} 9... Ne5 {[%clk 0:02:02.2]}
10. O-O {[%clk 0:02:28.1]} 10... Nxd3 {[%clk 0:02:01.5]} 11. Qxd3 {[%clk
0:02:29]} 11... O-O {[%clk 0:02:00.9]} 12. a3 {[%clk 0:02:28.7]} 12... Nd7
{[%clk 0:01:57.4]} 13. b4 {[%clk 0:02:28.5]} 13... Ne5 {[%clk 0:01:55.6]} 14.
Qe2 {[%clk 0:02:26.2]} 14... Qc7 {[%clk 0:01:54.6]} 15. Nd5 {[%clk 0:02:26.4]}
15... Qxc4 {[%clk 0:01:46]} 16. Nxe7+ {[%clk 0:02:24.6]} 16... Kh8 {[%clk
0:01:46]} 17. Nxc8 {[%clk 0:02:20]} 17... Raxc8 {[%clk 0:01:40.6]} 18. Rac1
{[%clk 0:02:19.3]} 18... Qxe2 {[%clk 0:01:36.8]} 19. Nxe2 {[%clk 0:02:20.2]}
19... Nc4 {[%clk 0:01:36.7]} 20. Bxa7 {[%clk 0:02:17.2]} 20... Nxa3 {[%clk
0:01:27.4]} 21. Bd4 {[%clk 0:02:15.2]} 21... Nb5 {[%clk 0:00:57.7]} 22. Bxg7+
{[%clk 0:02:11.8]} 22... Kxg7 {[%clk 0:00:58.6]} 23. Rfd1 {[%clk 0:02:10.4]}
23... Rc6 {[%clk 0:00:48.6]} 24. Rd5 {[%clk 0:01:46.8]} 24... Rxc1+ {[%clk
0:00:40.9]} 25. Nxc1 {[%clk 0:01:47.7]} 25... Nc3 {[%clk 0:00:41]} 26. Rxd6
{[%clk 0:01:46.2]} 26... Nxe4 {[%clk 0:00:39.6]} 27. Rd7 {[%clk 0:01:46.4]}
27... b5 {[%clk 0:00:35.3]} 28. Rb7 {[%clk 0:01:42.6]} 28... Nc3 {[%clk
0:00:25.2]} 29. Nd3 {[%clk 0:01:38.5]} 29... Re8 {[%clk 0:00:20.3]} 30. f4
{[%clk 0:01:29.3]} 30... Re4 {[%clk 0:00:19.9]} 31. Rd7 {[%clk 0:00:56.8]} 31...
Ne2+ {[%clk 0:00:18.8]} 32. Kf2 {[%clk 0:00:56.7]} 32... Nxf4 {[%clk 0:00:19]}
33. Kf3 {[%clk 0:00:57.1]} 33... Nxd3 {[%clk 0:00:11.5]} 34. Kxe4 {[%clk
0:00:56.1]} 34... Nxb4 {[%clk 0:00:11.2]} 35. Rb7 {[%clk 0:00:55.2]} 35... Nc2
{[%clk 0:00:08.2]} 36. Rxb5 {[%clk 0:00:52.6]} 36... Ne1 {[%clk 0:00:08]} 37.
Rb2 {[%clk 0:00:52.5]} 37... f5+ {[%clk 0:00:04.6]} 38. Ke3 {[%clk 0:00:52.1]}
38... f4+ {[%clk 0:00:04.6]} 39. Ke4 {[%clk 0:00:50.8]} 39... g5 {[%clk
0:00:03.7]} 40. Re2 {[%clk 0:00:50.1]} 1-0

[Event "*** Titled Tuesday Blitz"]
[Site "Chess.com"]
[Date "2021.02.09"]
[Round "6"]
[White "Marty435"]
[Black "Tenamu"]
[Result "1-0"]
[WhiteElo "2594"]
[BlackElo "2412"]
[TimeControl "180+1"]
[EndTime "11:08:04 PST"]
[Termination "Marty435 won by resignation"]

1. c4 {[%clk 0:03:00.9]} 1... e5 {[%clk 0:02:58.6]} 2. Nc3 {[%clk 0:03:00.6]}
2... Nc6 {[%clk 0:02:58.2]} 3. Nf3 {[%clk 0:03:00.6]} 3... Bc5 {[%clk
0:02:53.6]} 4. Nxe5 {[%clk 0:02:38.5]} 4... Bxf2+ {[%clk 0:02:52.7]} 5. Kxf2
{[%clk 0:02:39.4]} 5... Nxe5 {[%clk 0:02:53.2]} 6. d4 {[%clk 0:02:32.8]} 6...
Nxc4 {[%clk 0:02:33.4]} 7. e4 {[%clk 0:02:31]} 7... d5 {[%clk 0:02:32.6]} 8.
Nxd5 {[%clk 0:02:19.2]} 8... Nd6 {[%clk 0:02:31.7]} 9. Bd3 {[%clk 0:02:14.8]}
9... Nf6 {[%clk 0:02:18]} 10. Re1 {[%clk 0:02:05.2]} 10... O-O {[%clk
0:02:15.2]} 11. Nc3 {[%clk 0:01:51.2]} 11... Ng4+ {[%clk 0:01:53.2]} 12. Kg3
{[%clk 0:01:28.4]} 12... f5 {[%clk 0:01:47.2]} 13. e5 {[%clk 0:01:20.3]} 13...
Ne4+ {[%clk 0:01:44.3]} 14. Bxe4 {[%clk 0:01:08.1]} 14... fxe4 {[%clk
0:01:41.6]} 15. Nxe4 {[%clk 0:01:09]} 15... h5 {[%clk 0:01:19.3]} 16. Bg5 {[%clk
0:01:05]} 16... Qd5 {[%clk 0:01:07.5]} 17. h3 {[%clk 0:01:04.9]} 17... Bf5
{[%clk 0:01:04.2]} 18. Nc3 {[%clk 0:00:56.4]} 18... Qf7 {[%clk 0:01:04]} 19.
hxg4 {[%clk 0:00:54.1]} 19... Bxg4 {[%clk 0:01:04.1]} 20. Qd2 {[%clk 0:00:52.3]}
20... Qg6 {[%clk 0:01:00.8]} 21. Kh2 {[%clk 0:00:50.6]} 21... Rf5 {[%clk
0:00:59.5]} 22. Bh4 {[%clk 0:00:46.2]} 22... Raf8 {[%clk 0:00:58.2]} 23. Nd5
{[%clk 0:00:44.5]} 23... Qe6 {[%clk 0:00:52.2]} 24. Ne7+ {[%clk 0:00:43.7]}
24... Kh7 {[%clk 0:00:50.6]} 25. Nxf5 {[%clk 0:00:43.5]} 25... Rxf5 {[%clk
0:00:51.5]} 26. Rf1 {[%clk 0:00:43.3]} 26... Rxf1 {[%clk 0:00:49.3]} 27. Rxf1
{[%clk 0:00:44.2]} 27... Bf5 {[%clk 0:00:45.3]} 28. Bg3 {[%clk 0:00:34]} 28...
Bg6 {[%clk 0:00:44]} 29. d5 {[%clk 0:00:32.7]} 29... Qg4 {[%clk 0:00:42.2]} 30.
Rf4 {[%clk 0:00:31.4]} 30... Qg5 {[%clk 0:00:40]} 31. e6 {[%clk 0:00:30.9]}
31... Kg8 {[%clk 0:00:36.9]} 32. Qd4 {[%clk 0:00:28.8]} 32... Be8 {[%clk
0:00:32.9]} 33. Bh4 {[%clk 0:00:28.2]} 33... Qg6 {[%clk 0:00:31.4]} 34. Qe5
{[%clk 0:00:28.2]} 34... Qc2 {[%clk 0:00:27.4]} 35. e7 {[%clk 0:00:25]} 35...
Kh7 {[%clk 0:00:24.2]} 36. Rf8 {[%clk 0:00:23.4]} 36... Bg6 {[%clk 0:00:24.2]}
37. e8=Q {[%clk 0:00:22.3]} 37... Bxe8 {[%clk 0:00:24.4]} 38. Qxe8 {[%clk
0:00:21.5]} 38... Qg6 {[%clk 0:00:25.3]} 1-0

[Event "*** Titled Tuesday Blitz"]
[Site "Chess.com"]
[Date "2021.02.09"]
[Round "6"]
[White "Godzillator"]
[Black "ajedrez1101"]
[Result "0-1"]
[WhiteElo "2256"]
[BlackElo "2092"]
[TimeControl "180+1"]
[EndTime "11:08:08 PST"]
[Termination "ajedrez1101 won by resignation"]

1. d4 {[%clk 0:03:00.9]} 1... b6 {[%clk 0:02:59.3]} 2. c4 {[%clk 0:03:01]} 2...
Bb7 {[%clk 0:02:59.5]} 3. Nc3 {[%clk 0:03:01.2]} 3... e6 {[%clk 0:02:59.8]} 4.
Qc2 {[%clk 0:03:01.5]} 4... Qh4 {[%clk 0:02:55.7]} 5. e3 {[%clk 0:02:52.1]} 5...
Bb4 {[%clk 0:02:55.2]} 6. Nf3 {[%clk 0:02:50.8]} 6... Bxf3 {[%clk 0:02:36.7]} 7.
gxf3 {[%clk 0:02:50.5]} 7... Nf6 {[%clk 0:02:29.6]} 8. a3 {[%clk 0:02:46.1]}
8... Bxc3+ {[%clk 0:02:29.2]} 9. Qxc3 {[%clk 0:02:46.5]} 9... O-O {[%clk
0:02:20.3]} 10. b3 {[%clk 0:02:43.1]} 10... d6 {[%clk 0:02:18.5]} 11. Bb2 {[%clk
0:02:43.1]} 11... Nbd7 {[%clk 0:02:17.8]} 12. Qd2 {[%clk 0:02:40.7]} 12... e5
{[%clk 0:02:11.8]} 13. O-O-O {[%clk 0:02:28.6]} 13... exd4 {[%clk 0:02:00]} 14.
exd4 {[%clk 0:02:28.2]} 14... Nh5 {[%clk 0:01:46.5]} 15. Bd3 {[%clk 0:02:26.4]}
15... Qf4 {[%clk 0:01:45.3]} 16. Be4 {[%clk 0:02:22]} 16... Rad8 {[%clk
0:01:40.7]} 17. Rhg1 {[%clk 0:02:18.3]} 17... Qxd2+ {[%clk 0:01:13.2]} 18. Kxd2
{[%clk 0:02:17.8]} 18... Ndf6 {[%clk 0:01:06.3]} 19. d5 {[%clk 0:02:08.7]} 19...
g6 {[%clk 0:01:06.3]} 20. Bf5 {[%clk 0:01:55.3]} 20... Rfe8 {[%clk 0:01:02.7]}
21. Rg5 {[%clk 0:01:48.2]} 21... Kf8 {[%clk 0:01:00.6]} 22. Bd3 {[%clk 0:01:41]}
22... Nd7 {[%clk 0:00:50.9]} 23. Rdg1 {[%clk 0:01:33.5]} 23... Ne5 {[%clk
0:00:48.2]} 24. Be2 {[%clk 0:01:29.1]} 24... Nf4 {[%clk 0:00:45.8]} 25. Bxe5
{[%clk 0:01:21.3]} 25... dxe5 {[%clk 0:00:45.5]} 26. Re1 {[%clk 0:01:15.9]}
26... c6 {[%clk 0:00:44.7]} 27. Bf1 {[%clk 0:01:03.7]} 27... f6 {[%clk
0:00:44.5]} 28. Rg4 {[%clk 0:00:58]} 28... cxd5 {[%clk 0:00:44]} 29. Kc3 {[%clk
0:00:56.2]} 29... d4+ {[%clk 0:00:43.8]} 30. Kb2 {[%clk 0:00:53.6]} 30... d3
{[%clk 0:00:43.8]} 31. Rd1 {[%clk 0:00:53.6]} 31... Rd4 {[%clk 0:00:44.1]} 32.
Kc3 {[%clk 0:00:43.4]} 32... Red8 {[%clk 0:00:43.7]} 33. Rd2 {[%clk 0:00:43.7]}
33... h5 {[%clk 0:00:37.5]} 34. Rg1 {[%clk 0:00:40.4]} 34... f5 {[%clk
0:00:35.4]} 35. b4 {[%clk 0:00:39.2]} 35... Kf7 {[%clk 0:00:34.9]} 36. c5 {[%clk
0:00:38.3]} 36... bxc5 {[%clk 0:00:34.2]} 37. bxc5 {[%clk 0:00:38.5]} 37... Rc8
{[%clk 0:00:31.4]} 38. Bxd3 {[%clk 0:00:38.6]} 38... Rxc5+ {[%clk 0:00:31.5]}
39. Kb3 {[%clk 0:00:36]} 39... Rxd3+ {[%clk 0:00:31]} 40. Rxd3 {[%clk
0:00:35.2]} 40... Nxd3 {[%clk 0:00:31.9]} 41. Rd1 {[%clk 0:00:34.9]} 41... e4
{[%clk 0:00:32]} 42. fxe4 {[%clk 0:00:33.6]} 42... fxe4 {[%clk 0:00:32.3]} 43.
Rd2 {[%clk 0:00:33.6]} 43... Rf5 {[%clk 0:00:31.4]} 44. Kc4 {[%clk 0:00:30.2]}
44... Rxf2 {[%clk 0:00:31.3]} 45. Rd1 {[%clk 0:00:30.1]} 45... Nb2+ {[%clk
0:00:29.9]} 0-1

[Event "*** Titled Tuesday Blitz"]
[Site "Chess.com"]
[Date "2021.02.09"]
[Round "6"]
[White "NiranjanNavalgund"]
[Black "zmeeed67"]
[Result "1-0"]
[WhiteElo "2510"]
[BlackElo "2316"]
[TimeControl "180+1"]
[EndTime "11:08:09 PST"]
[Termination "NiranjanNavalgund won on time"]

1. d4 {[%clk 0:03:00.9]} 1... d5 {[%clk 0:02:58.8]} 2. Nf3 {[%clk 0:03:00]} 2...
Nf6 {[%clk 0:02:59]} 3. Bf4 {[%clk 0:03:00.9]} 3... c5 {[%clk 0:02:59.1]} 4. c3
{[%clk 0:02:58.3]} 4... Nc6 {[%clk 0:02:59.4]} 5. e3 {[%clk 0:02:56.4]} 5... Qb6
{[%clk 0:02:59.5]} 6. Qb3 {[%clk 0:02:42.4]} 6... c4 {[%clk 0:02:59.3]} 7. Qc2
{[%clk 0:02:42]} 7... Bf5 {[%clk 0:02:59.3]} 8. Qc1 {[%clk 0:02:37.9]} 8... e6
{[%clk 0:02:59.6]} 9. Be2 {[%clk 0:02:37.4]} 9... Qd8 {[%clk 0:02:58.8]} 10.
Nbd2 {[%clk 0:02:38.3]} 10... Bd6 {[%clk 0:02:58.8]} 11. Bxd6 {[%clk 0:02:36.6]}
11... Qxd6 {[%clk 0:02:58.8]} 12. b3 {[%clk 0:02:37.5]} 12... cxb3 {[%clk
0:02:50.7]} 13. axb3 {[%clk 0:02:37.5]} 13... O-O {[%clk 0:02:50.6]} 14. Qa3
{[%clk 0:02:37.1]} 14... Qc7 {[%clk 0:02:43.5]} 15. O-O {[%clk 0:02:34.8]} 15...
a5 {[%clk 0:02:24.5]} 16. Rfc1 {[%clk 0:02:31.6]} 16... e5 {[%clk 0:02:09.2]}
17. dxe5 {[%clk 0:02:10.7]} 17... Nxe5 {[%clk 0:02:08.7]} 18. Nxe5 {[%clk
0:02:11.6]} 18... Qxe5 {[%clk 0:02:08.4]} 19. Nf3 {[%clk 0:02:12.5]} 19... Qc7
{[%clk 0:01:56.9]} 20. Ra2 {[%clk 0:02:09.2]} 20... b6 {[%clk 0:01:51.9]} 21.
Nd4 {[%clk 0:02:09.2]} 21... Be4 {[%clk 0:01:46.8]} 22. Rd2 {[%clk 0:01:59]}
22... Rac8 {[%clk 0:01:39.5]} 23. Nb5 {[%clk 0:01:59]} 23... Qe5 {[%clk
0:01:35.4]} 24. Qd6 {[%clk 0:01:52.9]} 24... Qg5 {[%clk 0:01:26.7]} 25. Qg3
{[%clk 0:01:49.9]} 25... Qxg3 {[%clk 0:01:05.5]} 26. hxg3 {[%clk 0:01:48]} 26...
Rfd8 {[%clk 0:01:05.7]} 27. f3 {[%clk 0:01:40]} 27... Bf5 {[%clk 0:01:03.5]} 28.
Kf2 {[%clk 0:01:39.5]} 28... Be6 {[%clk 0:00:58.2]} 29. g4 {[%clk 0:01:34.8]}
29... h6 {[%clk 0:00:55]} 30. Rd4 {[%clk 0:01:32.1]} 30... Kf8 {[%clk
0:00:47.7]} 31. Ke1 {[%clk 0:01:23.6]} 31... Ke7 {[%clk 0:00:46.5]} 32. Kd2
{[%clk 0:01:23.3]} 32... Nd7 {[%clk 0:00:37.1]} 33. Kc2 {[%clk 0:01:20.7]} 33...
Rc5 {[%clk 0:00:29.3]} 34. Kb2 {[%clk 0:01:19.4]} 34... Rdc8 {[%clk 0:00:14.8]}
35. f4 {[%clk 0:01:17.9]} 35... f6 {[%clk 0:00:12.4]} 36. Na3 {[%clk 0:01:08.7]}
36... Nb8 {[%clk 0:00:08.7]} 37. Rd2 {[%clk 0:00:58.8]} 37... Nc6 {[%clk
0:00:07.4]} 38. Nb5 {[%clk 0:00:55.6]} 38... Ra8 {[%clk 0:00:01.9]} 39. Nc7
{[%clk 0:00:51.3]} 1-0

[Event "*** Titled Tuesday Blitz"]
[Site "Chess.com"]
[Date "2021.02.09"]
[Round "6"]
[White "zacachess"]
[Black "tylityli"]
[Result "0-1"]
[WhiteElo "2407"]
[BlackElo "2287"]
[TimeControl "180+1"]
[EndTime "11:08:10 PST"]
[Termination "tylityli won by resignation"]

1. e4 {[%clk 0:03:00.9]} 1... e5 {[%clk 0:02:57.1]} 2. Nf3 {[%clk 0:03:00.4]}
2... Nc6 {[%clk 0:02:54.8]} 3. d4 {[%clk 0:03:00.8]} 3... exd4 {[%clk 0:02:54]}
4. Nxd4 {[%clk 0:03:01.7]} 4... Nf6 {[%clk 0:02:54.3]} 5. Nc3 {[%clk 0:03:01.5]}
5... Bb4 {[%clk 0:02:53.3]} 6. Nxc6 {[%clk 0:03:01.5]} 6... bxc6 {[%clk
0:02:53.2]} 7. Bd3 {[%clk 0:03:02.1]} 7... d5 {[%clk 0:02:53.4]} 8. exd5 {[%clk
0:03:02.3]} 8... cxd5 {[%clk 0:02:54.3]} 9. O-O {[%clk 0:03:02.2]} 9... O-O
{[%clk 0:02:54.4]} 10. h3 {[%clk 0:03:02.2]} 10... h6 {[%clk 0:02:51.6]} 11. Bf4
{[%clk 0:03:01.5]} 11... c6 {[%clk 0:02:51.5]} 12. Qf3 {[%clk 0:03:01.4]} 12...
Bd6 {[%clk 0:02:50.6]} 13. Rad1 {[%clk 0:02:59.2]} 13... Rb8 {[%clk 0:02:46.9]}
14. b3 {[%clk 0:02:59]} 14... Rb4 {[%clk 0:02:45.7]} 15. Ne2 {[%clk 0:02:58.7]}
15... Bxf4 {[%clk 0:02:43.1]} 16. Nxf4 {[%clk 0:02:58.4]} 16... Qd6 {[%clk
0:02:43.3]} 17. Ne2 {[%clk 0:02:55.4]} 17... a5 {[%clk 0:02:39.1]} 18. c3 {[%clk
0:02:52.5]} 18... Rb7 {[%clk 0:02:36.3]} 19. c4 {[%clk 0:02:09.4]} 19... Re7
{[%clk 0:02:33.5]} 20. Nd4 {[%clk 0:01:57.3]} 20... Rfe8 {[%clk 0:02:26.6]} 21.
cxd5 {[%clk 0:01:45.6]} 21... cxd5 {[%clk 0:02:23.6]} 22. Rc1 {[%clk 0:01:33.9]}
22... Bd7 {[%clk 0:02:12.1]} 23. Bb5 {[%clk 0:01:13.2]} 23... Qe5 {[%clk
0:02:03.1]} 24. Bxd7 {[%clk 0:01:05.6]} 24... Rxd7 {[%clk 0:02:02.6]} 25. Nc6
{[%clk 0:01:04.9]} 25... Qd6 {[%clk 0:01:36.1]} 26. Rfd1 {[%clk 0:00:26]} 26...
Qa3 {[%clk 0:01:29.3]} 27. Rc2 {[%clk 0:00:18.9]} 27... a4 {[%clk 0:01:23.7]}
28. b4 {[%clk 0:00:15.4]} 28... Qxf3 {[%clk 0:01:21.6]} 29. gxf3 {[%clk
0:00:16.3]} 29... Rb7 {[%clk 0:01:17.8]} 30. a3 {[%clk 0:00:15.9]} 30... Kf8
{[%clk 0:01:15.4]} 31. Nd4 {[%clk 0:00:14.6]} 31... Nh5 {[%clk 0:01:08.3]} 32.
Rdc1 {[%clk 0:00:14.4]} 32... Nf4 {[%clk 0:01:07.3]} 33. Rc7 {[%clk 0:00:13.8]}
33... Nxh3+ {[%clk 0:01:02.3]} 34. Kg2 {[%clk 0:00:11.7]} 34... Nf4+ {[%clk
0:01:01.7]} 35. Kg3 {[%clk 0:00:11.4]} 35... Rxc7 {[%clk 0:00:50.9]} 36. Rxc7
{[%clk 0:00:12.3]} 36... Nd3 {[%clk 0:00:32.8]} 37. Ra7 {[%clk 0:00:10.8]} 37...
Nb2 {[%clk 0:00:32.3]} 38. Rxa4 {[%clk 0:00:09.2]} 38... Nxa4 {[%clk 0:00:31]}
0-1

[Event "*** Titled Tuesday Blitz"]
[Site "Chess.com"]
[Date "2021.02.09"]
[Round "6"]
[White "mamonika"]
[Black "CzechmVIII"]
[Result "1-0"]
[WhiteElo "2042"]
[BlackElo "2246"]
[TimeControl "180+1"]
[EndTime "11:08:10 PST"]
[Termination "mamonika won on time"]

1. e4 {[%clk 0:03:00.9]} 1... c5 {[%clk 0:03:00]} 2. Nf3 {[%clk 0:03:00.8]} 2...
d6 {[%clk 0:03:00.3]} 3. d4 {[%clk 0:03:01.1]} 3... cxd4 {[%clk 0:03:01.1]} 4.
Nxd4 {[%clk 0:03:01.9]} 4... Nf6 {[%clk 0:03:01.5]} 5. Nc3 {[%clk 0:03:02.4]}
5... g6 {[%clk 0:03:02.2]} 6. Be2 {[%clk 0:03:00.3]} 6... Bg7 {[%clk 0:03:02.3]}
7. O-O {[%clk 0:02:59.6]} 7... Nc6 {[%clk 0:03:01.6]} 8. Nb3 {[%clk 0:02:59.6]}
8... O-O {[%clk 0:03:01.6]} 9. Bg5 {[%clk 0:02:55.4]} 9... Be6 {[%clk
0:03:01.5]} 10. Re1 {[%clk 0:02:55.1]} 10... Rc8 {[%clk 0:02:40.4]} 11. Bf1
{[%clk 0:02:49.8]} 11... a5 {[%clk 0:02:22.9]} 12. a4 {[%clk 0:02:49.4]} 12...
Bxb3 {[%clk 0:02:22.3]} 13. cxb3 {[%clk 0:02:48.8]} 13... e6 {[%clk 0:02:23.1]}
14. Nb5 {[%clk 0:02:31]} 14... h6 {[%clk 0:02:03.3]} 15. Bxf6 {[%clk 0:02:03.7]}
15... Qxf6 {[%clk 0:01:54.9]} 16. Qxd6 {[%clk 0:01:43.8]} 16... Rfd8 {[%clk
0:01:47.8]} 17. Qg3 {[%clk 0:01:34.7]} 17... Qxb2 {[%clk 0:01:25.4]} 18. Rad1
{[%clk 0:01:26.1]} 18... Rxd1 {[%clk 0:01:08.7]} 19. Rxd1 {[%clk 0:01:26]} 19...
Nd4 {[%clk 0:00:57.7]} 20. Nxd4 {[%clk 0:01:16.9]} 20... Bxd4 {[%clk 0:00:57.8]}
21. Bc4 {[%clk 0:01:12.5]} 21... Be5 {[%clk 0:00:39.8]} 22. Qd3 {[%clk
0:01:07.8]} 22... Bf6 {[%clk 0:00:29.9]} 23. Qf3 {[%clk 0:00:46.7]} 23... Qe5
{[%clk 0:00:20]} 24. g3 {[%clk 0:00:43.6]} 24... Kg7 {[%clk 0:00:17.9]} 25. Rd7
{[%clk 0:00:39.5]} 25... Rd8 {[%clk 0:00:16.6]} 26. Rxb7 {[%clk 0:00:35.5]}
26... Qa1+ {[%clk 0:00:13.4]} 27. Kg2 {[%clk 0:00:35.2]} 27... Rd1 {[%clk
0:00:13]} 28. Bxe6 {[%clk 0:00:30.8]} 28... Rg1+ {[%clk 0:00:09.3]} 29. Kh3
{[%clk 0:00:31.1]} 29... Qf1+ {[%clk 0:00:09.6]} 30. Kg4 {[%clk 0:00:24.6]}
30... h5+ {[%clk 0:00:09.5]} 31. Kf4 {[%clk 0:00:21]} 31... Qc1+ {[%clk
0:00:02.4]} 32. Qe3 {[%clk 0:00:21.1]} 32... g5+ {[%clk 0:00:01.3]} 33. Kf5
{[%clk 0:00:20.5]} 1-0

[Event "*** Titled Tuesday Blitz"]
[Site "Chess.com"]
[Date "2021.02.09"]
[Round "6"]
[White "Supernotar"]
[Black "Kovalchuk94"]
[Result "1-0"]
[WhiteElo "2801"]
[BlackElo "2637"]
[TimeControl "180+1"]
[EndTime "11:08:12 PST"]
[Termination "Supernotar won on time"]

1. d4 {[%clk 0:03:00.9]} 1... Nf6 {[%clk 0:02:59.9]} 2. c4 {[%clk 0:03:01]} 2...
c5 {[%clk 0:03:00.2]} 3. d5 {[%clk 0:03:00.6]} 3... b5 {[%clk 0:03:00.6]} 4. Nf3
{[%clk 0:03:00.9]} 4... g6 {[%clk 0:02:58.5]} 5. b3 {[%clk 0:03:00.4]} 5... Bg7
{[%clk 0:02:56]} 6. Bb2 {[%clk 0:03:00.6]} 6... d6 {[%clk 0:02:50.7]} 7. Nbd2
{[%clk 0:03:00.2]} 7... O-O {[%clk 0:02:41.1]} 8. e4 {[%clk 0:02:49.2]} 8...
bxc4 {[%clk 0:02:31.6]} 9. Bxc4 {[%clk 0:02:45.6]} 9... Nbd7 {[%clk 0:02:26.5]}
10. Qc2 {[%clk 0:02:36.8]} 10... Nb6 {[%clk 0:02:25.3]} 11. O-O {[%clk
0:02:23.4]} 11... a5 {[%clk 0:02:16.1]} 12. Rfe1 {[%clk 0:02:10.4]} 12... a4
{[%clk 0:02:15.7]} 13. h3 {[%clk 0:02:00.5]} 13... Ba6 {[%clk 0:01:59.7]} 14.
Rad1 {[%clk 0:01:46.4]} 14... axb3 {[%clk 0:01:22.8]} 15. axb3 {[%clk
0:01:47.3]} 15... Nxc4 {[%clk 0:01:19.1]} 16. bxc4 {[%clk 0:01:45.5]} 16... Rb8
{[%clk 0:01:10.2]} 17. Bc3 {[%clk 0:01:42.4]} 17... Qc7 {[%clk 0:00:59.5]} 18.
e5 {[%clk 0:01:40.9]} 18... Ne8 {[%clk 0:00:57.6]} 19. exd6 {[%clk 0:01:28.6]}
19... Nxd6 {[%clk 0:00:57.1]} 20. Bxg7 {[%clk 0:01:26.7]} 20... Kxg7 {[%clk
0:00:58]} 21. Qc3+ {[%clk 0:01:26.5]} 21... Kg8 {[%clk 0:00:58]} 22. Ne5 {[%clk
0:01:26.1]} 22... h5 {[%clk 0:00:49.6]} 23. g4 {[%clk 0:01:14.7]} 23... hxg4
{[%clk 0:00:39]} 24. hxg4 {[%clk 0:01:15.1]} 24... Rbe8 {[%clk 0:00:15.9]} 25.
Re3 {[%clk 0:01:14.9]} 25... e6 {[%clk 0:00:14.7]} 26. g5 {[%clk 0:01:02]} 26...
exd5 {[%clk 0:00:08.1]} 27. cxd5 {[%clk 0:01:02.6]} 27... Nf5 {[%clk 0:00:07.1]}
28. Ng4 {[%clk 0:00:58.3]} 28... Rxe3 {[%clk 0:00:05.6]} 29. Nxe3 {[%clk
0:00:47.6]} 29... Qf4 {[%clk 0:00:05.4]} 30. Qf6 {[%clk 0:00:36]} 30... Be2
{[%clk 0:00:02.8]} 31. Re1 {[%clk 0:00:26.7]} 31... Bd3 {[%clk 0:00:01.7]} 32.
Ndf1 {[%clk 0:00:21.2]} 1-0

[Event "*** Titled Tuesday Blitz"]
[Site "Chess.com"]
[Date "2021.02.09"]
[Round "6"]
[White "J36225"]
[Black "Sofiia_Hryzlova"]
[Result "1-0"]
[WhiteElo "2481"]
[BlackElo "2280"]
[TimeControl "180+1"]
[EndTime "11:08:13 PST"]
[Termination "J36225 won by checkmate"]

1. e4 {[%clk 0:02:58.3]} 1... c5 {[%clk 0:02:59]} 2. Nf3 {[%clk 0:02:58.1]} 2...
Nc6 {[%clk 0:02:58.8]} 3. Bb5 {[%clk 0:02:57.8]} 3... e6 {[%clk 0:02:56.4]} 4.
O-O {[%clk 0:02:56.9]} 4... Nge7 {[%clk 0:02:55.3]} 5. Re1 {[%clk 0:02:56]} 5...
a6 {[%clk 0:02:55]} 6. Bf1 {[%clk 0:02:55.4]} 6... g6 {[%clk 0:02:54]} 7. c3
{[%clk 0:02:55]} 7... e5 {[%clk 0:02:51.3]} 8. d4 {[%clk 0:02:52.7]} 8... cxd4
{[%clk 0:02:50.6]} 9. cxd4 {[%clk 0:02:53.6]} 9... exd4 {[%clk 0:02:50.3]} 10.
Nxd4 {[%clk 0:02:53.2]} 10... Bg7 {[%clk 0:02:50.3]} 11. Be3 {[%clk 0:02:50.1]}
11... O-O {[%clk 0:02:50]} 12. Nc3 {[%clk 0:02:49.5]} 12... d6 {[%clk
0:02:48.3]} 13. Qd2 {[%clk 0:02:44.9]} 13... h5 {[%clk 0:02:35.1]} 14. Rad1
{[%clk 0:02:42.8]} 14... Ne5 {[%clk 0:02:30.2]} 15. h3 {[%clk 0:02:40.4]} 15...
b5 {[%clk 0:02:12.3]} 16. f4 {[%clk 0:02:37.4]} 16... Nc4 {[%clk 0:02:11.9]} 17.
Bxc4 {[%clk 0:02:37]} 17... bxc4 {[%clk 0:02:12.1]} 18. Nf3 {[%clk 0:02:18.1]}
18... Rb8 {[%clk 0:02:09.4]} 19. Bd4 {[%clk 0:02:17.6]} 19... f6 {[%clk
0:02:02.6]} 20. Kh1 {[%clk 0:01:51.9]} 20... Be6 {[%clk 0:01:58.9]} 21. Be3
{[%clk 0:01:42.7]} 21... Bf7 {[%clk 0:01:53.2]} 22. Nd4 {[%clk 0:01:42.5]} 22...
Qc7 {[%clk 0:01:47.4]} 23. f5 {[%clk 0:01:41.2]} 23... Rfd8 {[%clk 0:01:28.1]}
24. fxg6 {[%clk 0:01:37.9]} 24... Nxg6 {[%clk 0:01:27.2]} 25. Nf5 {[%clk
0:01:38.1]} 25... Bf8 {[%clk 0:01:16.7]} 26. Nd5 {[%clk 0:01:36.4]} 26... Bxd5
{[%clk 0:00:55.2]} 27. Qxd5+ {[%clk 0:01:31.2]} 27... Qf7 {[%clk 0:00:53.3]} 28.
Qd2 {[%clk 0:01:26.3]} 28... Rb5 {[%clk 0:00:43.2]} 29. Bh6 {[%clk 0:01:24.3]}
29... d5 {[%clk 0:00:37.7]} 30. Bxf8 {[%clk 0:01:23.1]} 30... Kxf8 {[%clk
0:00:35.3]} 31. Qh6+ {[%clk 0:01:19.5]} 31... Kg8 {[%clk 0:00:25.8]} 32. Qxh5
{[%clk 0:01:18.9]} 32... Qh7 {[%clk 0:00:24.4]} 33. Qg4 {[%clk 0:01:08.8]} 33...
Kh8 {[%clk 0:00:20.5]} 34. exd5 {[%clk 0:01:06.9]} 34... Ne5 {[%clk 0:00:20.3]}
35. Rxe5 {[%clk 0:00:57.1]} 35... fxe5 {[%clk 0:00:20.4]} 36. d6 {[%clk
0:00:57.3]} 36... Rxb2 {[%clk 0:00:19.9]} 37. Qg5 {[%clk 0:00:52.8]} 37... Rf8
{[%clk 0:00:17.9]} 38. d7 {[%clk 0:00:49.3]} 38... Rbb8 {[%clk 0:00:14.7]} 39.
d8=Q {[%clk 0:00:44.9]} 39... Rbxd8 {[%clk 0:00:10.5]} 40. Rxd8 {[%clk
0:00:44.2]} 40... Rxd8 {[%clk 0:00:10.9]} 41. Qxd8+ {[%clk 0:00:42.1]} 41... Qg8
{[%clk 0:00:11.3]} 42. Qf6+ {[%clk 0:00:41.7]} 42... Kh7 {[%clk 0:00:10.2]} 43.
Qh6# {[%clk 0:00:41.6]} 1-0